bitfinex-derivatives/quotes_BTCF0:USTF0_20230701
["timestamp","ask_amount","ask_price","bid_price","bid_amount"]
[1688205204112,0.52709028,30473.0,30472.0,0.41096889]
[1688205205016,0.52709028,30473.0,30472.0,0.3927392]
[1688205205713,0.52709028,30473.0,30472.0,0.41096889]
[1688205206504,0.52709028,30473.0,30472.0,0.05016889]
[1688205206713,0.52709028,30473.0,30472.0,0.41096889]
[1688205207512,0.52709028,30473.0,30472.0,0.3927392]
[1688205208511,0.52709028,30473.0,30472.0,0.41096889]
[1688205212016,0.52709028,30473.0,30472.0,0.3927392]
[1688205212516,0.52709028,30473.0,30472.0,0.410036]
[1688205214518,0.52709028,30473.0,30472.0,0.42826569]
[1688205214712,0.15279628,30473.0,30472.0,0.42826569]
[1688205214916,0.15279628,30473.0,30472.0,0.78286569]
[1688205215225,0.38130696,30475.0,30472.0,0.85611065]
[1688205215419,0.38130696,30475.0,30474.0,0.3546]
[1688205215720,0.38130696,30475.0,30474.0,0.39314145]
[1688205216122,0.38130696,30475.0,30474.0,0.41137114]
[1688205218116,0.46618614,30475.0,30474.0,0.41137114]
[1688205219323,0.70946366,30475.0,30474.0,0.41137114]
[1688205219529,0.70946366,30475.0,30474.0,0.374292]
[1688205221214,0.70946366,30475.0,30474.0,0.39252169]
[1688205222120,0.70946366,30475.0,30474.0,0.374292]
[1688205222326,0.70946366,30475.0,30474.0,0.39252169]
[1688205223921,0.79434503,30475.0,30474.0,0.39252169]
[1688205224326,0.70946366,30475.0,30474.0,0.39252169]
[1688205224712,0.70966366,30475.0,30474.0,0.03792169]
[1688205226429,0.70966366,30475.0,30474.0,0.019692]
[1688205226731,0.70966366,30475.0,30474.0,0.03792169]
[1688205228030,0.70966366,30475.0,30474.0,0.019692]
[1688205228224,0.70966366,30475.0,30474.0,0.39872169]
[1688205228430,0.70966366,30475.0,30474.0,0.380492]
[1688205228933,0.70966366,30475.0,30474.0,0.39872169]
[1688205229132,0.70966366,30475.0,30474.0,0.380492]
[1688205230829,0.70966366,30475.0,30474.0,0.39872169]
[1688205231129,0.72935766,30475.0,30474.0,0.380492]
[1688205231825,0.8142414,30475.0,30474.0,0.380492]
[1688205232641,0.4860847,30475.0,30474.0,0.380492]
[1688205232936,0.4860847,30475.0,30474.0,0.39872169]
[1688205233438,0.81414958,30475.0,30474.0,0.39872169]
[1688205234233,0.81414958,30475.0,30474.0,0.380492]
[1688205234429,0.4860847,30475.0,30474.0,0.39872169]
[1688205234936,0.4860847,30475.0,30474.0,0.380492]
[1688205236637,0.4860847,30475.0,30474.0,0.39872169]
[1688205236839,0.4860847,30475.0,30474.0,0.380492]
[1688205239737,0.4860847,30475.0,30474.0,0.39872169]
[1688205239938,0.4860847,30475.0,30474.0,0.380492]
[1688205243832,0.4860847,30475.0,30474.0,0.019692]
[1688205251349,1.4860847,30475.0,30473.0,0.41003]
[1688205251644,0.45917774,30474.0,30473.0,0.41003]
[1688205252936,0.45917774,30474.0,30473.0,0.04923]
[1688205267576,0.45917774,30474.0,30473.0,0.02702677]
[1688205268064,0.45917774,30474.0,30473.0,0.06410591]
[1688205268265,0.45917774,30474.0,30473.0,0.04587622]
[1688205268756,0.45917774,30474.0,30473.0,0.06410591]
[1688205269864,0.45917774,30474.0,30473.0,0.04587622]
[1688205271668,0.45917774,30474.0,30473.0,0.02702677]
[1688205278077,0.45917774,30474.0,30473.0,0.38782677]
[1688205280875,0.76647774,30474.0,30473.0,0.38782677]
[1688205288488,0.76647774,30474.0,30473.0,0.41003]
[1688205290182,0.76647774,30474.0,30473.0,0.40114623]
[1688205291275,0.76647774,30474.0,30473.0,0.04923]
[1688205297085,0.76647774,30474.0,30473.0,0.04423322]
[1688205302087,0.76647774,30474.0,30473.0,0.02685283]
[1688205309279,0.76647774,30474.0,30473.0,0.04570228]
[1688205313598,0.76647774,30474.0,30473.0,0.02685283]
[1688205316293,0.76647774,30474.0,30473.0,0.04570228]
[1688205319799,0.76647774,30474.0,30473.0,0.04923]
[1688205320001,0.76647774,30474.0,30473.0,0.41003]
[1688205321011,0.76647774,30474.0,30473.0,0.42887945]
[1688205321497,0.76647774,30474.0,30473.0,0.44710914]
[1688205321695,0.76647774,30474.0,30473.0,0.42887945]
[1688205324904,0.76647774,30474.0,30473.0,0.41003]
[1688205330799,0.83438661,30474.0,30473.0,0.41003]
[1688205331909,0.83438661,30474.0,30473.0,0.41062809]
[1688205333603,0.83438661,30474.0,30473.0,0.04982809]
[1688205333807,0.83438661,30474.0,30473.0,0.41062809]
[1688205334008,0.83438661,30474.0,30473.0,0.04982809]
[1688205334204,0.83438661,30474.0,30473.0,0.41062809]
[1688205342509,0.83438661,30474.0,30473.0,0.40332809]
[1688205346812,0.83438661,30474.0,30473.0,0.41062809]
[1688205349724,0.83438661,30474.0,30473.0,0.04982809]
[1688205349926,0.83438661,30474.0,30473.0,0.41062809]
[1688205350121,0.83438661,30474.0,30473.0,0.04982809]
[1688205350321,0.83438661,30474.0,30473.0,0.41062809]
[1688205350521,0.83438661,30474.0,30473.0,0.04982809]
[1688205350722,0.83438661,30474.0,30473.0,0.41062809]
[1688205353833,0.83438661,30474.0,30473.0,0.04982809]
[1688205354035,0.83438661,30474.0,30473.0,0.41062809]
[1688205356327,0.83438661,30474.0,30473.0,0.42947754]
[1688205357735,0.83438661,30474.0,30473.0,0.06867754]
[1688205358235,0.83438661,30474.0,30473.0,0.42947754]
[1688205358537,0.83438661,30474.0,30473.0,0.06867754]
[1688205358831,0.83438661,30474.0,30473.0,0.42947754]
[1688205360936,0.83438661,30474.0,30473.0,0.06867754]
[1688205361325,0.83438661,30474.0,30473.0,0.42947754]
[1688205361526,0.83438661,30474.0,30473.0,0.44770723]
[1688205361738,0.83438661,30474.0,30473.0,0.42947754]
[1688205363033,0.83438661,30474.0,30473.0,0.44770723]
[1688205363531,0.83438661,30474.0,30473.0,0.42947754]
[1688205364536,0.83438661,30474.0,30473.0,0.41062809]
[1688205365326,0.83438661,30474.0,30473.0,0.42947754]
[1688205366936,0.83438661,30474.0,30473.0,0.41062809]
[1688205367133,0.83438661,30474.0,30473.0,0.42885778]
[1688205367429,0.83438661,30474.0,30473.0,0.41062809]
[1688205368227,0.83438661,30474.0,30473.0,0.42947754]
[1688205369131,0.83438661,30474.0,30473.0,0.44770723]
[1688205369332,0.83438661,30474.0,30473.0,0.42947754]
[1688205371132,0.83438661,30474.0,30473.0,0.44770723]
[1688205371333,0.83438661,30474.0,30473.0,0.42947754]
[1688205373538,0.83438661,30474.0,30473.0,0.06867754]
[1688205373740,0.83438661,30474.0,30473.0,0.41062809]
[1688205373942,0.83438661,30474.0,30473.0,0.42947754]
[1688205376944,0.83438661,30474.0,30473.0,0.41062809]
[1688205378228,0.83438661,30474.0,30473.0,0.04982809]
[1688205378434,0.83438661,30474.0,30473.0,0.41062809]
[1688205384240,0.83438661,30474.0,30473.0,0.42947754]
[1688205384554,0.83438661,30474.0,30473.0,0.44770723]
[1688205384742,0.83438661,30474.0,30473.0,0.42947754]
[1688205385151,0.83438661,30474.0,30473.0,0.44770723]
[1688205385359,0.83438661,30474.0,30473.0,0.42947754]
[1688205385652,0.83438661,30474.0,30473.0,0.44770723]
[1688205385855,0.83438661,30474.0,30473.0,0.42947754]
[1688205386147,0.83438661,30474.0,30473.0,0.44770723]
[1688205387749,0.83438661,30474.0,30473.0,0.42947754]
[1688205389255,0.83438661,30474.0,30473.0,0.44770723]
[1688205392149,0.83438661,30474.0,30473.0,0.42947754]
[1688205393658,0.83438661,30474.0,30473.0,0.06867754]
[1688205394256,0.83438661,30474.0,30473.0,0.42947754]
[1688205394944,0.83438661,30474.0,30473.0,0.06867754]
[1688205395147,0.83438661,30474.0,30473.0,0.42947754]
[1688205397962,0.83438661,30474.0,30473.0,0.44770723]
[1688205399050,0.83438661,30474.0,30473.0,0.42947754]
[1688205399766,0.83438661,30474.0,30473.0,0.06867754]
[1688205399956,0.83438661,30474.0,30473.0,0.42947754]
[1688205400952,0.83438661,30474.0,30473.0,0.44770723]
[1688205401163,0.83438661,30474.0,30473.0,0.08690723]
[1688205401461,0.83438661,30474.0,30473.0,0.42947754]
[1688205401651,0.83438661,30474.0,30473.0,0.44770723]
[1688205402256,0.83438661,30474.0,30473.0,0.42947754]
[1688205403859,0.83438661,30474.0,30473.0,0.44770723]
[1688205404254,0.83438661,30474.0,30473.0,0.42947754]
[1688205404858,0.83438661,30474.0,30473.0,0.06867754]
[1688205405264,0.83438661,30474.0,30473.0,0.42947754]
[1688205405467,0.83438661,30474.0,30473.0,0.44770723]
[1688205405769,0.83438661,30474.0,30473.0,0.42947754]
[1688205406062,0.83438661,30474.0,30473.0,0.44770723]
[1688205406258,0.83438661,30474.0,30473.0,0.42947754]
[1688205406849,0.83438661,30474.0,30473.0,0.44770723]
[1688205407262,0.83438661,30474.0,30473.0,0.42947754]
[1688205407856,0.83438661,30474.0,30473.0,0.06867754]
[1688205408164,0.83438661,30474.0,30473.0,0.42947754]
[1688205409063,0.83438661,30474.0,30473.0,0.06867754]
[1688205409259,0.83438661,30474.0,30473.0,0.42947754]
[1688205410065,0.83438661,30474.0,30473.0,0.44770723]
[1688205410770,0.83438661,30474.0,30473.0,0.08690723]
[1688205410973,0.83438661,30474.0,30473.0,0.44770723]
[1688205412174,0.83438661,30474.0,30473.0,0.41062809]
[1688205413263,0.83438661,30474.0,30473.0,0.42947754]
[1688205413575,0.83438661,30474.0,30473.0,0.44770723]
[1688205416467,0.83438661,30474.0,30473.0,0.42947754]
[1688205416869,0.83438661,30474.0,30473.0,0.44770723]
[1688205418872,0.83438661,30474.0,30473.0,0.40794085]
[1688205419066,0.83438661,30474.0,30473.0,0.42617054]
[1688205419263,0.83438661,30474.0,30473.0,0.40794085]
[1688205419978,0.83438661,30474.0,30473.0,0.40734404]
[1688205421182,0.83438661,30474.0,30473.0,0.42619349]
[1688205422477,0.83438661,30474.0,30473.0,0.40734404]
[1688205425379,0.83438661,30474.0,30473.0,0.38812873]
[1688205435492,0.83438661,30474.0,30473.0,0.40635842]
[1688205435681,0.83438661,30474.0,30473.0,0.38812873]
[1688205437084,0.83438661,30474.0,30473.0,0.42520787]
[1688205437284,0.83438661,30474.0,30473.0,0.40697818]
[1688205437787,0.83438661,30474.0,30473.0,0.42520787]
[1688205438289,0.83438661,30474.0,30473.0,0.40697818]
[1688205439190,0.83438661,30474.0,30473.0,0.42520787]
[1688205440594,0.83438661,30474.0,30473.0,0.40697818]
[1688205442892,0.83438661,30474.0,30473.0,0.42520787]
[1688205445579,0.83438661,30474.0,30473.0,0.40697818]
[1688205445786,0.83438661,30474.0,30473.0,0.42520787]
[1688205466705,0.83438661,30474.0,30473.0,0.06440787]
[1688205466905,0.83438661,30474.0,30473.0,0.42520787]
[1688205467503,0.83438661,30474.0,30473.0,0.06440787]
[1688205467696,0.83438661,30474.0,30473.0,0.42520787]
[1688205480716,0.83438661,30474.0,30473.0,0.40635842]
[1688205481907,0.83438661,30474.0,30473.0,0.04555842]
[1688205482107,0.83438661,30474.0,30473.0,0.40635842]
[1688205482309,0.83438661,30474.0,30473.0,0.38812873]
[1688205482622,0.83438661,30474.0,30473.0,0.40635842]
[1688205485917,0.83438661,30474.0,30473.0,0.04555842]
[1688205486121,0.83438661,30474.0,30473.0,0.40635842]
[1688205488022,0.83438661,30474.0,30473.0,0.04555842]
[1688205488224,0.83438661,30474.0,30473.0,0.40635842]
[1688205488619,0.83438661,30474.0,30473.0,0.38812873]
[1688205489524,0.83438661,30474.0,30473.0,0.40635842]
[1688205492228,0.83438661,30474.0,30473.0,0.38812873]
[1688205492429,0.83438661,30474.0,30473.0,0.40635842]
[1688205495931,0.83438661,30474.0,30473.0,0.38812873]
[1688205496232,0.83438661,30474.0,30473.0,0.40635842]
[1688205496428,0.83438661,30474.0,30473.0,0.38812873]
[1688205497127,0.83438661,30474.0,30473.0,0.40635842]
[1688205506340,0.83438661,30474.0,30473.0,0.38812873]
[1688205506929,0.83438661,30474.0,30473.0,0.40635842]
[1688205510441,0.83438661,30474.0,30473.0,0.38812873]
[1688205519938,0.83438661,30474.0,30473.0,0.3608]
[1688205520141,0.83438661,30474.0,30473.0,0.349477]
[1688205521240,0.83438661,30474.0,30471.0,0.42693221]
[1688205521438,0.3546,30472.0,30471.0,0.42693221]
[1688205521637,0.52708761,30472.0,30471.0,0.42693221]
[1688205522142,0.52708761,30472.0,30471.0,0.43141764]
[1688205522449,0.84408761,30472.0,30471.0,0.43141764]
[1688205522646,0.84408761,30472.0,30471.0,0.36577764]
[1688205522947,0.84408761,30472.0,30471.0,0.38547364]
[1688205525136,0.84408761,30472.0,30471.0,0.02467364]
[1688205527145,1.17241658,30472.0,30471.0,0.02467364]
[1688205527546,0.84408761,30472.0,30471.0,0.02467364]
[1688205528942,1.17239358,30472.0,30471.0,0.02467364]
[1688205529645,1.08750984,30472.0,30471.0,0.02467364]
[1688205531549,1.17240284,30472.0,30471.0,0.02467364]
[1688205533440,1.08750984,30472.0,30471.0,0.02467364]
[1688205534645,1.17240287,30472.0,30471.0,0.02467364]
[1688205534849,0.8440969,30472.0,30471.0,0.02467364]
[1688205540457,0.8440969,30472.0,30471.0,0.0245521]
[1688205587509,0.8440969,30472.0,30471.0,0.04340155]
[1688205596315,0.8440969,30472.0,30471.0,0.40420155]
[1688205597314,0.8440969,30472.0,30471.0,0.42243124]
[1688205597513,0.8440969,30472.0,30471.0,0.40420155]
[1688205600022,0.8440969,30472.0,30471.0,0.3853521]
[1688205601820,0.8440969,30472.0,30471.0,0.40420155]
[1688205603614,0.8440969,30472.0,30471.0,0.3853521]
[1688205605117,0.8244019,30472.0,30471.0,0.3853521]
[1688205605318,0.8440949,30472.0,30471.0,0.3853521]
[1688205605519,0.8440949,30472.0,30471.0,0.42243124]
[1688205605821,0.5074019,30472.0,30471.0,0.42243124]
[1688205606021,0.51318957,30472.0,30471.0,0.41794581]
[1688205609528,0.84160767,30472.0,30471.0,0.41794581]
[1688205610118,0.51318957,30472.0,30471.0,0.41794581]
[1688205617436,0.42829654,30472.0,30471.0,0.41794581]
[1688205620336,0.42829654,30472.0,30471.0,0.77874581]
[1688205624740,0.42829654,30472.0,30471.0,1.13134581]
[1688205624938,0.51318214,30472.0,30471.0,1.13134581]
[1688205628938,0.01756683,30472.0,30471.0,1.13134581]
[1688205629139,0.00438469,30472.0,30471.0,1.13134581]
[1688205629535,0.44345587,30474.0,30471.0,1.13134581]
[1688205629740,0.44345587,30474.0,30471.0,1.09426667]
[1688205629741,0.35878484,30472.0,30471.0,1.09426667]
[1688205629935,0.3544,30472.0,30471.0,1.09426667]
[1688205630134,0.35878495,30472.0,30471.0,1.09426667]
[1688205630338,0.35878495,30472.0,30471.0,1.13134581]
[1688205631835,0.44366969,30472.0,30471.0,1.13134581]
[1688205632441,0.35878495,30472.0,30471.0,1.13134581]
[1688205633846,0.42669271,30472.0,30471.0,1.13134581]
[1688205634748,0.42689271,30472.0,30471.0,0.77874581]
[1688205636840,0.42250776,30472.0,30471.0,0.78465325]
[1688205641954,0.42250776,30472.0,30471.0,1.13925325]
[1688205644657,0.06790776,30472.0,30471.0,1.13925325]
[1688205649554,0.38120776,30472.0,30471.0,1.13925325]
[1688205649754,0.4660899,30472.0,30471.0,1.13925325]
[1688205652356,0.39818214,30472.0,30471.0,0.7658038]
[1688205652557,0.75258214,30472.0,30471.0,0.7658038]
[1688205653054,0.75258214,30472.0,30471.0,0.78465325]
[1688205655055,0.6677,30472.0,30471.0,0.06305325]
[1688205655255,0.6677,30472.0,30471.0,0.78465325]
[1688205658151,0.687393,30472.0,30471.0,0.78465325]
[1688205659050,0.6677,30472.0,30471.0,0.78465325]
[1688205659357,0.687394,30472.0,30471.0,0.78465325]
[1688205660358,0.6677,30472.0,30471.0,0.78465325]
[1688205662549,0.75258282,30472.0,30471.0,0.78465325]
[1688205663454,0.77227882,30472.0,30471.0,0.78465325]
[1688205667363,0.77227682,30472.0,30471.0,0.78465325]
[1688205669865,0.75258282,30472.0,30471.0,0.78465325]
[1688205670168,0.6677,30472.0,30471.0,0.78465325]
[1688205673972,0.687394,30472.0,30471.0,0.78465325]
[1688205674671,0.687594,30472.0,30471.0,1.13925325]
[1688205680779,0.687594,30472.0,30471.0,0.77845325]
[1688205684979,0.77247772,30472.0,30471.0,1.13925325]
[1688205688784,0.75278372,30472.0,30471.0,1.13925325]
[1688205692581,0.6679,30472.0,30471.0,1.13925325]
[1688205694683,0.3133,30472.0,30471.0,1.13925325]
[1688205695584,0.3133,30472.0,30471.0,0.41765325]
[1688205695777,0.3133,30472.0,30471.0,1.13925325]
[1688205699981,0.39818096,30472.0,30471.0,1.13925325]
[1688205700977,0.39818096,30472.0,30471.0,0.41765325]
[1688205701190,0.39818096,30472.0,30471.0,1.13925325]
[1688205701487,0.46608575,30472.0,30471.0,1.13925325]
[1688205701689,0.44379543,30472.0,30471.0,1.13925325]
[1688205705485,0.46348943,30472.0,30471.0,1.13925325]
[1688205705690,0.44379543,30472.0,30471.0,1.13925325]
[1688205706275,0.44379543,30472.0,30471.0,0.41765325]
[1688205706480,0.44379543,30472.0,30471.0,1.13925325]
[1688205707494,0.35891447,30472.0,30471.0,1.13925325]
[1688205708386,0.71351447,30472.0,30471.0,1.13745325]
[1688205711387,0.73320847,30472.0,30471.0,1.13745325]
[1688205711588,0.71351447,30472.0,30471.0,1.13745325]
[1688205712788,0.42250479,30472.0,30471.0,1.13745325]
[1688205715199,0.50738617,30472.0,30471.0,1.13745325]
[1688205715899,0.50370617,30472.0,30471.0,1.13745325]
[1688205719896,0.50370617,30472.0,30471.0,0.41585325]
[1688205720093,0.50370617,30472.0,30471.0,1.13745325]
[1688205722799,0.41882479,30472.0,30471.0,1.13745325]
[1688205725699,0.41882479,30472.0,30471.0,0.41585325]
[1688205725898,0.41882479,30472.0,30471.0,1.13745325]
[1688205730899,0.43851879,30472.0,30471.0,1.13745325]
[1688205731107,0.41882479,30472.0,30471.0,1.13745325]
[1688205731308,0.43851879,30472.0,30471.0,1.13745325]
[1688205732206,0.41882479,30472.0,30471.0,1.13745325]
[1688205732797,0.43851779,30472.0,30471.0,1.13745325]
[1688205733810,0.41882479,30472.0,30471.0,1.13745325]
[1688205734707,0.43851779,30472.0,30471.0,1.13925325]
[1688205737114,0.43851779,30472.0,30471.0,0.41765325]
[1688205737310,0.43851779,30472.0,30471.0,1.13925325]
[1688205737509,0.5233973,30472.0,30471.0,1.13925325]
[1688205743622,0.5233973,30472.0,30471.0,0.41765325]
[1688205743813,0.5233973,30472.0,30471.0,1.13925325]
[1688205745126,0.43851779,30472.0,30471.0,1.13925325]
[1688205747823,0.43851779,30472.0,30471.0,0.41765325]
[1688205748022,0.43851779,30472.0,30471.0,1.13925325]
[1688205749331,0.41882479,30472.0,30471.0,1.13925325]
[1688205749526,0.43851879,30472.0,30471.0,1.13925325]
[1688205750229,0.41882479,30472.0,30471.0,1.13925325]
[1688205751026,0.43851779,30472.0,30471.0,1.13925325]
[1688205751231,0.41882479,30472.0,30471.0,1.13925325]
[1688205751418,0.43851679,30472.0,30471.0,1.10217411]
[1688205752532,0.52339875,30472.0,30471.0,1.10217411]
[1688205754333,0.52339875,30472.0,30471.0,1.13925325]
[1688205760041,0.43851679,30472.0,30471.0,1.13925325]
[1688205760728,0.41882479,30472.0,30471.0,1.13925325]
[1688205764443,0.41882479,30472.0,30471.0,0.41765325]
[1688205764639,0.41882479,30472.0,30471.0,1.13925325]
[1688205766349,0.48578648,30472.0,30471.0,1.13925325]
[1688205766549,0.48578648,30472.0,30471.0,1.12102356]
[1688205766946,0.48578648,30472.0,30471.0,1.10217411]
[1688205767544,0.57066598,30472.0,30471.0,1.10217411]
[1688205767739,0.57066598,30472.0,30471.0,1.1204038]
[1688205768950,0.57066598,30472.0,30471.0,1.10217411]
[1688205769152,0.57066598,30472.0,30471.0,0.38057411]
[1688205769344,0.57066598,30472.0,30471.0,1.10217411]
[1688205769948,0.57066598,30472.0,30471.0,1.1204038]
[1688205770151,0.57066598,30472.0,30471.0,1.13925325]
[1688205771751,0.57066598,30472.0,30471.0,0.78465325]
[1688205774656,0.57066598,30472.0,30471.0,1.13925325]
[1688205775052,0.48578648,30472.0,30471.0,1.13925325]
[1688205783558,0.48578648,30472.0,30471.0,0.41765325]
[1688205783753,0.48578648,30472.0,30471.0,1.13925325]
[1688205784560,0.48578648,30472.0,30471.0,0.41765325]
[1688205784752,0.48578648,30472.0,30471.0,1.13925325]
[1688205785159,0.48578648,30472.0,30471.0,0.41765325]
[1688205785360,0.48578648,30472.0,30471.0,1.13925325]
[1688205790059,0.57066569,30472.0,30471.0,1.13925325]
[1688205794266,0.57066569,30472.0,30471.0,1.1204038]
[1688205797565,0.48578648,30472.0,30471.0,1.1204038]
[1688205800166,0.48578648,30472.0,30471.0,1.13925325]
[1688205803571,0.48578648,30472.0,30471.0,0.41765325]
[1688205803768,0.48578648,30472.0,30471.0,1.13925325]
[1688205805072,0.57066454,30472.0,30471.0,1.13925325]
[1688205805465,0.57066454,30472.0,30471.0,1.1204038]
[1688205806876,0.57066454,30472.0,30471.0,1.13925325]
[1688205809374,0.07066454,30472.0,30471.0,1.13925325]
[1688205809982,0.49016324,30472.0,30471.0,1.13925325]
[1688205812576,0.4194987,30472.0,30471.0,1.13925325]
[1688205816780,0.4194987,30472.0,30471.0,1.13922351]
[1688205817079,0.4391907,30472.0,30471.0,1.13922351]
[1688205818783,0.4375559,30472.0,30471.0,1.13922351]
[1688205819877,0.374292,30472.0,30471.0,1.13922351]
[1688205820074,0.3546,30472.0,30471.0,1.13922351]
[1688205820279,0.374295,30472.0,30471.0,1.13922351]
[1688205823679,0.3546,30472.0,30471.0,1.13922351]
[1688205825084,0.374294,30472.0,30471.0,1.13922351]
[1688205825990,0.3546,30472.0,30471.0,1.13922351]
[1688205826787,0.374294,30472.0,30471.0,1.12037406]
[1688205826984,0.374294,30472.0,30471.0,1.10214437]
[1688205827577,0.45917228,30472.0,30471.0,1.10214437]
[1688205827780,0.45917228,30472.0,30471.0,1.12037406]
[1688205828883,0.45917228,30472.0,30471.0,1.13922351]
[1688205829686,0.45617228,30472.0,30471.0,1.13922351]
[1688205833187,0.45617228,30472.0,30471.0,1.12099382]
[1688205833387,0.45617228,30472.0,30471.0,1.13922351]
[1688205835199,0.371294,30472.0,30471.0,1.13922351]
[1688205839592,0.3516,30472.0,30471.0,1.13922351]
[1688205839785,0.371294,30472.0,30471.0,1.13922351]
[1688205840010,0.3102,30473.0,30471.0,1.13922351]
[1688205840192,0.684493,30473.0,30472.0,0.39167914]
[1688205840395,0.75239505,30473.0,30472.0,0.41137314]
[1688205840590,0.73270205,30473.0,30472.0,0.41725693]
[1688205841099,0.75239605,30473.0,30472.0,0.41725693]
[1688205842691,0.83727396,30473.0,30472.0,0.41725693]
[1688205843790,0.83727396,30473.0,30472.0,0.38017779]
[1688205850201,0.75239605,30473.0,30472.0,0.38017779]
[1688205850397,0.75239605,30473.0,30472.0,0.39840748]
[1688205850598,0.75239605,30473.0,30472.0,0.38017779]
[1688205852009,0.75239605,30473.0,30472.0,0.39840748]
[1688205853309,0.75239605,30473.0,30472.0,0.38017779]
[1688205853812,0.75239605,30473.0,30472.0,0.39902724]
[1688205854615,0.75239605,30473.0,30472.0,0.04442724]
[1688205856213,0.75239605,30473.0,30472.0,0.06265693]
[1688205856414,0.75239605,30473.0,30472.0,0.04442724]
[1688205857702,0.83727655,30473.0,30472.0,0.04442724]
[1688205859009,0.83727655,30473.0,30472.0,0.06265693]
[1688205859919,0.83727655,30473.0,30472.0,0.04442724]
[1688205865115,0.75239605,30473.0,30472.0,0.04442724]
[1688205865421,0.75239605,30473.0,30472.0,0.40522724]
[1688205865606,0.75239605,30473.0,30472.0,0.38637779]
[1688205872723,0.83727952,30473.0,30472.0,0.38637779]
[1688205873117,0.76937747,30473.0,30472.0,0.38637779]
[1688205875411,0.83728403,30473.0,30472.0,0.38637779]
[1688205875918,0.83728376,30473.0,30472.0,0.38637779]
[1688205877711,0.83728376,30473.0,30472.0,0.40522724]
[1688205878115,0.76937747,30473.0,30472.0,0.40522724]
[1688205878325,0.83728361,30473.0,30472.0,0.40522724]
[1688205879527,0.76937747,30473.0,30472.0,0.40522724]
[1688205879727,0.83728375,30473.0,30472.0,0.40522724]
[1688205880124,0.75240028,30473.0,30472.0,0.40522724]
[1688205881424,0.684494,30473.0,30472.0,0.38637779]
[1688205882833,0.75240019,30473.0,30472.0,0.38637779]
[1688205883334,0.82030661,30473.0,30472.0,0.38637779]
[1688205883625,0.82030661,30473.0,30472.0,0.40522724]
[1688205885526,0.82030661,30473.0,30472.0,0.38637779]
[1688205887036,0.82030661,30473.0,30472.0,0.36668379]
[1688205890422,0.82030661,30473.0,30472.0,0.38637879]
[1688205890622,0.82030661,30473.0,30472.0,0.36668379]
[1688205891835,0.82030661,30473.0,30472.0,0.38637779]
[1688205892031,0.82030661,30473.0,30472.0,0.38637879]
[1688205892334,0.82030661,30473.0,30472.0,0.36668379]
[1688205893732,0.51010661,30473.0,30472.0,0.36668379]
[1688205894035,0.51010661,30473.0,30472.0,0.38637879]
[1688205895229,0.59498978,30473.0,30472.0,0.38637879]
[1688205897546,0.92398978,30473.0,30472.0,0.38637879]
[1688205902847,0.83910661,30473.0,30472.0,0.38637879]
[1688205907345,0.77120042,30473.0,30472.0,0.38637879]
[1688205908152,0.77120042,30473.0,30472.0,0.40522824]
[1688205908755,0.77120042,30473.0,30472.0,0.42345793]
[1688205909749,0.77120042,30473.0,30472.0,0.40522824]
[1688205909948,0.77120042,30473.0,30472.0,0.38637879]
[1688205911251,0.77120042,30473.0,30472.0,0.42345793]
[1688205911854,0.77120042,30473.0,30472.0,0.40522824]
[1688205913157,0.77120042,30473.0,30472.0,0.38637879]
[1688205914651,0.41660042,30473.0,30472.0,0.38017879]
[1688205914950,0.41660042,30473.0,30472.0,0.74097879]
[1688205916242,0.41660042,30473.0,30472.0,0.38017879]
[1688205916653,0.41660042,30473.0,30472.0,0.74097879]
[1688205917263,0.41660042,30473.0,30472.0,0.38017879]
[1688205917456,0.41660042,30473.0,30472.0,0.74097879]
[1688205917661,0.50148325,30473.0,30472.0,0.74097879]
[1688205918355,0.50148325,30473.0,30472.0,0.75920848]
[1688205918952,0.50148325,30473.0,30472.0,0.77805793]
[1688205919254,0.50148325,30473.0,30472.0,0.75982824]
[1688205919855,0.50148325,30473.0,30472.0,0.77805793]
[1688205920060,0.50148325,30473.0,30472.0,0.75682824]
[1688205920960,0.50148325,30473.0,30472.0,0.77505793]
[1688205921159,0.50148325,30473.0,30472.0,0.75682824]
[1688205921655,0.50148325,30473.0,30472.0,0.77505793]
[1688205921856,0.50148325,30473.0,30472.0,0.41425793]
[1688205922160,0.50148325,30473.0,30472.0,0.77505793]
[1688205923462,0.50148325,30473.0,30472.0,0.75682824]
[1688205924763,0.50148325,30473.0,30472.0,0.73797879]
[1688205925164,0.41660042,30473.0,30472.0,0.73797879]
[1688205926659,0.41660042,30473.0,30472.0,0.77505793]
[1688205929377,0.41660042,30473.0,30472.0,0.75682824]
[1688205929573,0.41660042,30473.0,30472.0,0.77505793]
[1688205931883,0.41660042,30473.0,30472.0,0.77547609]
[1688205932083,0.41660042,30473.0,30472.0,0.75662664]
[1688205932680,0.50148368,30473.0,30472.0,0.75662664]
[1688205933173,0.50148368,30473.0,30472.0,0.41467609]
[1688205933373,0.50148368,30473.0,30472.0,0.77547609]
[1688205933973,0.50148368,30473.0,30472.0,0.41467609]
[1688205934174,0.50148368,30473.0,30472.0,0.73839695]
[1688205934376,0.50148368,30473.0,30472.0,0.75662664]
[1688205934979,0.50148368,30473.0,30472.0,0.73839695]
[1688205936783,0.50148368,30473.0,30472.0,0.74139695]
[1688205940187,0.41660042,30473.0,30472.0,0.38059695]
[1688205940383,0.41660042,30473.0,30472.0,0.74139695]
[1688205943178,0.41660042,30473.0,30472.0,0.74026846]
[1688205944487,0.41660042,30473.0,30472.0,0.75911791]
[1688205945889,0.41660042,30473.0,30472.0,0.74026846]
[1688205947693,0.50148415,30473.0,30472.0,0.74026846]
[1688205950491,0.50148415,30473.0,30472.0,0.83174311]
[1688205950692,0.50148415,30473.0,30472.0,0.7773476]
[1688205950894,0.50148415,30473.0,30472.0,0.75911791]
[1688205952897,0.50148415,30473.0,30472.0,0.39831791]
[1688205953098,0.50148415,30473.0,30472.0,0.75911791]
[1688205954294,0.50148415,30473.0,30472.0,0.74026846]
[1688205954590,0.50148415,30473.0,30472.0,0.73726846]
[1688205955198,0.41660042,30473.0,30472.0,0.73726846]
[1688205958512,0.41660042,30473.0,30472.0,0.75611791]
[1688205959810,0.41660042,30473.0,30472.0,0.73726846]
[1688205962497,0.41660042,30473.0,30472.0,0.75549815]
[1688205962702,0.5014849,30473.0,30472.0,0.75549815]
[1688205963304,0.5014849,30473.0,30472.0,0.75611791]
[1688205964422,0.5014849,30473.0,30472.0,0.73726846]
[1688205964613,0.5014849,30473.0,30472.0,0.74026846]
[1688205966513,0.5014849,30473.0,30472.0,0.7773476]
[1688205966822,0.5014849,30473.0,30472.0,0.75911791]
[1688205967023,0.5014849,30473.0,30472.0,0.74026846]
[1688205970323,0.41660042,30473.0,30472.0,0.74026846]
[1688205970515,0.41660042,30473.0,30472.0,0.37946846]
[1688205970710,0.41660042,30473.0,30472.0,0.74026846]
[1688205973716,0.41660042,30473.0,30472.0,0.75911791]
[1688205974225,0.41660042,30473.0,30472.0,0.37946846]
[1688205974612,0.41660042,30473.0,30472.0,0.74026846]
[1688205977427,0.41660042,30473.0,30472.0,0.75849815]
[1688205977630,0.41660042,30473.0,30472.0,0.74026846]
[1688205985430,0.50148559,30473.0,30472.0,0.74026846]